fUSD/lending_fUSD_20260115
["ID","MTS","AMOUNT","RATE_DAILY","PERIOD"]
[402034724,1768488658927,-151.0,0.00041095,120]
[402034725,1768488658937,-207.21215,0.00041095,120]
[402034726,1768488658946,-500.0,0.00041095,30]
[402034727,1768488658956,-500.0,0.00041095,30]
[402034728,1768488658965,-1423.22,0.00041095,30]
[402034729,1768488658975,-963.06,0.00041095,30]
[402034730,1768488658984,-500.0,0.00041095,30]
[402034731,1768488658993,-500.0,0.00041095,30]
[402034732,1768488659003,-500.0,0.00041095,30]
[402034733,1768488659012,-500.0,0.00041095,30]
[402034734,1768488659021,-500.0,0.00041095,30]
[402034735,1768488659031,-606.49,0.00041095,30]
[402034736,1768488659043,-650.13,0.00041095,30]
[402034737,1768488659054,-500.0,0.00041095,30]
[402034738,1768488659063,-500.0,0.00041095,30]
[402034739,1768488659074,-500.0,0.00041095,30]
[402034740,1768488659084,-151.0,0.00041095,120]
[402034741,1768488659094,-621.15,0.00041095,30]
[402034742,1768488659103,-500.0,0.00041095,30]
[402034743,1768488659113,-1108.85,0.00041095,30]
[402034744,1768488659122,-500.0,0.00041095,30]
[402034745,1768488659133,-500.0,0.00041095,30]
[402034746,1768488659143,-273.80425089,0.00041095,30]
[402034747,1768488659154,-500.0,0.00041095,30]
[402034748,1768488659164,-500.0,0.00041095,30]
[402034749,1768488659174,-1563.9,0.00041095,30]
[402034750,1768488659183,-500.0,0.00041095,30]
[402034751,1768488659192,-982.86,0.00041095,30]
[402034752,1768488659202,-405.40308056,0.00041095,120]
[402034753,1768488659211,-500.0,0.00041095,30]
[402034754,1768488659221,-724.81,0.00041095,30]
[402034755,1768488659230,-500.0,0.00041095,30]
[402034756,1768488659240,-500.0,0.00041095,30]
[402034757,1768488659249,-559.99,0.00041095,30]
[402034758,1768488659258,-510.16023684,0.00041095,30]
[402034759,1768488659268,-782.73,0.00041095,30]
[402034760,1768488659277,-500.0,0.00041095,30]
[402034761,1768488659287,-854.93,0.00041095,30]
[402034762,1768488659296,-500.0,0.00041095,30]
[402034763,1768488659305,-1121.87,0.00041095,30]
[402034764,1768488659314,-500.0,0.00041095,30]
[402034765,1768488659324,-500.0,0.00041095,30]
[402034766,1768488659335,-500.0,0.00041095,30]
[402034767,1768488659344,-500.0,0.00041095,30]
[402034768,1768488659354,-500.0,0.00041095,30]
[402034769,1768488659363,-1094.89,0.00041095,30]
[402034770,1768488659373,-500.0,0.00041095,30]
[402034771,1768488659382,-781.46,0.00041095,30]
[402034772,1768488659392,-500.0,0.00041095,30]
[402034773,1768488659401,-500.0,0.00041095,30]
[402034774,1768488659411,-500.0,0.00041095,30]
[402034775,1768488659420,-500.0,0.00041095,30]
[402034776,1768488659430,-500.0,0.00041095,30]
[402034777,1768488659439,-500.0,0.00041095,30]
[402034778,1768488659449,-500.0,0.00041095,30]
[402034779,1768488659458,-537.26214692,0.00041095,30]
[402034780,1768488659469,-628.1,0.00041095,30]
[402034781,1768488659479,-500.0,0.00041095,30]
[402034782,1768488659489,-500.0,0.00041095,30]
[402034783,1768488659499,-500.0,0.00041095,30]
[402034784,1768488659509,-500.0,0.00041095,30]
[402034785,1768488659519,-500.0,0.00041095,30]
[402034786,1768488659529,-975.85,0.00041095,30]
[402034787,1768488659538,-531.07048298,0.00041095,30]
[402034788,1768488659548,-500.0,0.00041095,30]
[402034789,1768488659557,-1145.77,0.00041095,30]
[402034790,1768488659567,-950.97,0.00041095,30]
[402034791,1768488659576,-491.33844757,0.00041095,30]
[402034792,1768488659585,-500.0,0.00041095,30]
[402034793,1768488659594,-528.58404491,0.00041095,30]
[402034794,1768488659607,-500.0,0.00041095,30]
[402034795,1768488659616,-1189.35,0.00041095,30]
[402034796,1768488659626,-500.0,0.00041095,30]
[402034797,1768488659635,-500.0,0.00041095,30]
[402034798,1768488659645,-500.0,0.00041095,30]
[402034799,1768488659654,-520.37,0.00041095,30]
[402034800,1768488659664,-683.17,0.00041095,30]
[402034801,1768488659673,-566.14,0.00041095,30]
[402034802,1768488659682,-500.0,0.00041095,30]
[402034803,1768488659693,-558.76292347,0.00041095,30]
[402034804,1768488659702,-500.0,0.00041095,30]
[402034805,1768488659710,-500.0,0.00041095,30]
[402034806,1768488659719,-500.0,0.00041095,30]
[402034807,1768488659729,-1112.28,0.00041095,30]
[402034808,1768488659738,-500.0,0.00041095,30]
[402034809,1768488659747,-500.0,0.00041095,30]
[402034810,1768488659756,-500.0,0.00041095,30]
[402034811,1768488659765,-500.0,0.00041095,30]
[402034812,1768488659774,-156.52616,0.00041095,120]
[402034813,1768488659783,-500.0,0.00041095,30]
[402034814,1768488659792,-500.0,0.00041095,30]
[402034815,1768488659802,-151.0,0.00041095,120]
[402034816,1768488659811,-151.0,0.00041095,120]
[402034817,1768488659820,-1869.81,0.00041095,30]
[402034818,1768488659830,-151.0,0.00041095,120]
[402034819,1768488659840,-151.0,0.00041095,120]
[402034820,1768488659850,-500.0,0.00041095,30]
[402034821,1768488659859,-500.0,0.00041095,30]
[402034822,1768488659868,-151.0,0.00041095,120]
[402034823,1768488659877,-151.0,0.00041095,120]
[402034824,1768488659887,-151.0,0.00041095,120]
[402034825,1768488659896,-151.0,0.00041095,120]
[402034826,1768488659905,-500.0,0.00041095,30]
[402034827,1768488659914,-1164.5,0.00041095,30]
[402034828,1768488659924,-1291.05,0.00041095,30]
[402034829,1768488659933,-151.0,0.00041095,120]
[402034830,1768488659942,-151.0,0.00041095,120]
[402034831,1768488659951,-500.0,0.00041095,30]
[402034832,1768488659960,-151.0,0.00041095,120]
[402034833,1768488659969,-500.0,0.00041095,30]
[402034834,1768488659979,-1566.79,0.00041095,30]
[402034835,1768488659988,-151.0,0.00041095,120]
[402034836,1768488659997,-500.0,0.00041095,30]
[402034837,1768488660006,-577.07,0.00041095,30]
[402034838,1768488660016,-500.0,0.00041095,30]
[402034839,1768488660026,-500.0,0.00041095,30]
[402034840,1768488660036,-1033.95,0.00041095,30]
[402034841,1768488660046,-500.0,0.00041095,30]
[402034842,1768488660056,-151.0,0.00041095,120]
[402034843,1768488660066,-151.0,0.00041095,120]
[402034844,1768488660076,-500.0,0.00041095,30]
[402034845,1768488660088,-500.0,0.00041095,30]
[402034846,1768488660098,-500.0,0.00041095,30]
[402034847,1768488660108,-533.79,0.00041095,30]
[402034848,1768488660117,-600.74,0.00041095,30]
[402034849,1768488660127,-151.0,0.00041095,120]
[402034850,1768488660136,-500.0,0.00041095,30]
[402034851,1768488660146,-151.0,0.00041095,120]
[402034852,1768488660156,-1954.89,0.00041095,30]
[402034853,1768488660165,-582.53,0.00041095,30]
[402034854,1768488660174,-151.0,0.00041095,120]
[402034855,1768488660183,-500.0,0.00041095,30]
[402034856,1768488660193,-151.0,0.00041095,120]
[402034857,1768488660202,-500.0,0.00041095,30]
[402034858,1768488660212,-168.45681637,0.00041095,120]
[402034859,1768488660222,-701.06,0.00041095,30]
[402034860,1768488660232,-500.0,0.00041095,30]
[402034861,1768488660241,-780.55,0.00041095,30]
[402034862,1768488660250,-737.11,0.00041095,30]
[402034863,1768488660260,-1175.7,0.00041095,30]
[402034864,1768488660270,-500.0,0.00041095,30]
[402034865,1768488660279,-500.0,0.00041095,30]
[402034866,1768488660289,-500.0,0.00041095,30]
[402034867,1768488660298,-500.0,0.00041095,30]
[402034868,1768488660308,-500.0,0.00041095,30]
[402034869,1768488660317,-500.0,0.00041095,30]
[402034870,1768488660326,-500.0,0.00041095,30]
[402034871,1768488660336,-633.34,0.00041095,30]
[402034872,1768488660346,-222.770164,0.00041095,120]
[402034873,1768488660356,-500.0,0.00041095,30]
[402034874,1768488660365,-222.770164,0.00041095,120]
[402034875,1768488660375,-500.0,0.00041095,30]
[402034876,1768488660384,-222.770164,0.00041095,120]
[402034877,1768488660393,-222.770164,0.00041095,120]
[402034878,1768488660402,-1654.13,0.00041095,30]
[402034879,1768488660412,-222.770164,0.00041095,120]
[402034880,1768488660421,-222.770164,0.00041095,120]
[402034881,1768488660430,-222.770164,0.00041095,120]
[402034882,1768488660440,-500.0,0.00041095,30]
[402034883,1768488660449,-222.770164,0.00041095,120]
[402034884,1768488660459,-500.0,0.00041095,30]
[402034885,1768488660468,-563.02,0.00041095,30]
[402034886,1768488660478,-540.76,0.00041095,30]
[402034887,1768488660487,-500.0,0.00041095,30]
[402034888,1768488660497,-500.0,0.00041095,30]
[402034889,1768488660506,-500.0,0.00041095,30]
[402034890,1768488660515,-500.0,0.00041095,30]
[402034891,1768488660525,-500.0,0.00041095,30]
[402034892,1768488660534,-500.0,0.00041095,30]
[402034893,1768488660544,-500.0,0.00041095,30]
[402034894,1768488660554,-500.0,0.00041095,30]
[402034895,1768488660564,-500.0,0.00041095,30]
[402034896,1768488660573,-500.0,0.00041095,30]
[402034897,1768488660583,-500.0,0.00041095,30]
[402034898,1768488660593,-500.0,0.00041095,30]
[402034899,1768488660603,-500.0,0.00041095,30]
[402034900,1768488660617,-300.75950298,0.00041095,30]
[402034901,1768488660626,-500.0,0.00041095,30]
[402034902,1768488660636,-844.78,0.00041095,30]
[402034903,1768488660645,-500.0,0.00041095,30]
[402034904,1768488660656,-500.0,0.00041095,30]
[402034905,1768488660666,-763.01,0.00041095,30]
[402034906,1768488660675,-500.0,0.00041095,30]
[402034907,1768488660685,-500.0,0.00041095,30]
[402034908,1768488660694,-531.52,0.00041095,30]
[402034909,1768488660704,-500.0,0.00041095,30]
[402034910,1768488660713,-864.15,0.00041095,30]
[402034911,1768488660722,-500.0,0.00041095,30]
[402034912,1768488660731,-2420.0,0.00041095,30]
[402034913,1768488660741,-500.0,0.00041095,30]
[402034914,1768488660751,-601.25,0.00041095,30]
[402034915,1768488660760,-632.68,0.00041095,30]
[402034916,1768488660770,-500.0,0.00041095,30]
[402034917,1768488660780,-1634.01,0.00041095,30]
[402034918,1768488660789,-475.171332,0.00041095,120]
[402034919,1768488660798,-475.171332,0.00041095,120]
[402034920,1768488660808,-742.35,0.00041095,30]
[402034921,1768488660818,-151.0,0.00041095,120]
[402034922,1768488660827,-151.0,0.00041095,120]
[402034923,1768488660840,-475.171332,0.00041095,120]
[402034924,1768488660850,-517.82819016,0.00041095,30]
[402034925,1768488660859,-500.0,0.00041095,30]
[402034926,1768488660869,-475.171332,0.00041095,120]
[402034927,1768488660878,-1092.53,0.00041095,30]
[402034928,1768488660888,-151.0,0.00041095,120]
[402034929,1768488660897,-151.0,0.00041095,120]
[402034930,1768488660907,-1410.58,0.00041095,30]
[402034931,1768488660917,-475.171332,0.00041095,120]
[402034932,1768488660927,-500.0,0.00041095,30]
[402034933,1768488660936,-475.171332,0.00041095,120]
[402034934,1768488660945,-151.0,0.00041095,120]
[402034935,1768488660954,-151.0,0.00041095,120]
[402034936,1768488660964,-1576.98,0.00041095,30]
[402034937,1768488660973,-500.0,0.00041095,30]
[402034938,1768488661056,-475.171332,0.00041095,120]
[402034939,1768488661066,-500.0,0.00041095,30]
[402034940,1768488661076,-475.171332,0.00041095,120]
[402034941,1768488661088,-151.0,0.00041095,120]
[402034942,1768488661098,-246.996877,0.00041095,120]
[402034943,1768488661108,-500.0,0.00041095,30]
[402034944,1768488661118,-500.0,0.00041095,30]
[402034945,1768488661128,-612.86999084,0.00041095,30]
[402034946,1768488661138,-500.0,0.00041095,30]
[402034947,1768488661148,-500.0,0.00041095,30]
[402034948,1768488661158,-500.0,0.00041095,30]
[402034949,1768488661167,-151.0,0.00041095,120]
[402034950,1768488661177,-151.0,0.00041095,120]
[402034951,1768488661186,-714.81,0.00041095,30]
[402034952,1768488661196,-805.16,0.00041095,30]
[402034953,1768488661207,-1343.98,0.00041095,30]
[402034954,1768488661216,-500.0,0.00041095,30]
[402034955,1768488661226,-500.0,0.00041095,30]
[402034956,1768488661235,-500.0,0.00041095,30]
[402034957,1768488661245,-500.0,0.00041095,30]
[402034958,1768488661254,-500.0,0.00041095,30]
[402034959,1768488661264,-500.0,0.00041095,30]
[402034960,1768488661273,-500.0,0.00041095,30]
[402034961,1768488661283,-500.0,0.00041095,30]
[402034962,1768488661292,-151.0,0.00041095,120]
[402034963,1768488661301,-500.0,0.00041095,30]
[402034964,1768488661310,-151.0,0.00041095,120]
[402034965,1768488661319,-757.17,0.00041095,30]
[402034966,1768488661329,-1145.39,0.00041095,30]
[402034967,1768488661342,-500.0,0.00041095,30]
[402034968,1768488661352,-151.0,0.00041095,120]
[402034969,1768488661361,-151.0,0.00041095,120]
[402034970,1768488661371,-869.0,0.00041095,30]
[402034971,1768488661381,-273.746424,0.00041095,120]
[402034972,1768488661390,-273.746424,0.00041095,120]
[402034973,1768488661399,-500.0,0.00041095,30]
[402034974,1768488661409,-273.746424,0.00041095,120]
[402034975,1768488661419,-273.746424,0.00041095,120]
[402034976,1768488661429,-273.746424,0.00041095,120]
[402034977,1768488661438,-500.0,0.00041095,30]
[402034978,1768488661449,-1369.86,0.00041095,30]
[402034979,1768488661458,-668.01,0.00041095,30]
[402034980,1768488661467,-273.746424,0.00041095,120]
[402034981,1768488661476,-151.0,0.00041095,120]
[402034982,1768488661485,-696.36,0.00041095,30]
[402034983,1768488661495,-156.225779,0.00041095,120]
[402034984,1768488661504,-151.0,0.00041095,120]
[402034985,1768488661514,-156.225779,0.00041095,120]
[402034986,1768488661524,-500.0,0.00041095,30]
[402034987,1768488661533,-500.0,0.00041095,30]
[402034988,1768488661542,-500.0,0.00041095,30]
[402034989,1768488661552,-156.225779,0.00041095,120]
[402034990,1768488661562,-151.0,0.00041095,120]
[402034991,1768488661571,-156.225779,0.00041095,120]
[402034992,1768488661581,-151.0,0.00041095,120]
[402034993,1768488661595,-273.746424,0.00041095,120]
[402034994,1768488661607,-273.746424,0.00041095,120]
[402034995,1768488661617,-500.0,0.00041095,30]
[402034996,1768488661626,-500.0,0.00041095,30]
[402034997,1768488661635,-156.225779,0.00041095,120]
[402034998,1768488661645,-151.0,0.00041095,120]
[402034999,1768488661654,-500.0,0.00041095,30]
[402035000,1768488661664,-151.0,0.00041095,120]
[402035001,1768488661674,-156.225779,0.00041095,120]
[402035002,1768488661683,-500.0,0.00041095,30]
[402035003,1768488661693,-500.0,0.00041095,30]
[402035004,1768488661703,-500.0,0.00041095,30]
[402035005,1768488661712,-500.0,0.00041095,30]
[402035006,1768488661721,-151.0,0.00041095,120]
[402035007,1768488661730,-500.0,0.00041095,30]
[402035008,1768488661739,-3924.39,0.00041095,30]
[402035009,1768488661749,-530.62,0.00041095,30]
[402035010,1768488661758,-151.0,0.00041095,120]
[402035011,1768488661767,-156.225779,0.00041095,120]
[402035012,1768488661776,-156.225779,0.00041095,120]
[402035013,1768488661786,-1063.11,0.00041095,30]
[402035014,1768488661795,-500.0,0.00041095,30]
[402035015,1768488661804,-151.0,0.00041095,120]
[402035016,1768488661813,-151.0,0.00041095,120]
[402035017,1768488661823,-500.0,0.00041095,30]
[402035018,1768488661833,-500.0,0.00041095,30]
[402035019,1768488661845,-500.0,0.00041095,30]
[402035020,1768488661854,-500.0,0.00041095,30]
[402035021,1768488661864,-777.34,0.00041095,30]
[402035022,1768488661873,-1186.0,0.00041095,30]
[402035023,1768488661882,-1639.64,0.00041095,30]
[402035024,1768488661892,-771.56,0.00041095,30]
[402035025,1768488661901,-500.0,0.00041095,30]
[402035026,1768488661910,-500.0,0.00041095,30]
[402035027,1768488661919,-635.47,0.00041095,30]
[402035028,1768488661929,-1629.43,0.00041095,30]
[402035029,1768488661938,-2197.32,0.00041095,30]
[402035030,1768488661946,-500.0,0.00041095,30]
[402035031,1768488661957,-626.21,0.00041095,30]
[402035032,1768488661966,-623.81,0.00041095,30]
[402035033,1768488661975,-500.0,0.00041095,30]
[402035034,1768488661984,-859.93,0.00041095,30]
[402035035,1768488661993,-500.0,0.00041095,14]
[402035036,1768488662003,-1684.99,0.00041095,30]
[402035037,1768488662012,-1305.5,0.00041095,30]
[402035038,1768488662021,-500.0,0.00041095,30]
[402035039,1768488662032,-500.0,0.00041095,30]
[402035040,1768488662042,-500.0,0.00041095,30]
[402035041,1768488662052,-500.0,0.00041095,30]
[402035042,1768488662061,-500.0,0.00041095,30]
[402035043,1768488662070,-500.0,0.00041095,30]
[402035044,1768488662080,-1379.65,0.00041095,30]
[402035045,1768488662093,-151.0,0.00041095,120]
[402035046,1768488662102,-500.0,0.00041095,30]
[402035047,1768488662112,-500.0,0.00041095,30]
[402035048,1768488662122,-151.0,0.00041095,120]
[402035049,1768488662131,-1000.0,0.00041095,2]
[402035050,1768488662141,-1163.21,0.00041095,30]
[402035051,1768488662151,-500.0,0.00041095,30]
[402035052,1768488662160,-1082.1,0.00041095,30]
[402035053,1768488662169,-523.41,0.00041095,30]
[402035054,1768488662178,-500.0,0.00041095,30]
[402035055,1768488662188,-506.82366035,0.00041095,30]
[402035056,1768488662197,-881.17,0.00041095,30]
[402035057,1768488662206,-500.0,0.00041095,30]
[402035058,1768488662215,-500.0,0.00041095,30]
[402035059,1768488662225,-1066.94,0.00041095,30]
[402035060,1768488662234,-500.0,0.00041095,30]
[402035061,1768488662243,-500.0,0.00041095,30]
[402035062,1768488662253,-817.11,0.00041095,30]
[402035063,1768488662262,-500.0,0.00041095,30]
[402035064,1768488662271,-650.42,0.00041095,30]
[402035065,1768488662280,-500.0,0.00041095,30]
[402035066,1768488662289,-556.1199863,0.00041095,30]
[402035067,1768488662299,-668.37,0.00041095,30]
[402035068,1768488662308,-500.0,0.00041095,2]
[402035069,1768488662318,-500.0,0.00041095,30]
[402035070,1768488662327,-500.0,0.00041095,30]
[402035071,1768488662340,-500.0,0.00041095,30]
[402035072,1768488662350,-500.0,0.00041095,30]
[402035073,1768488662359,-813.24,0.00041095,30]
[402035074,1768488662370,-500.0,0.00041095,30]
[402035075,1768488662379,-1589.01,0.00041095,30]
[402035076,1768488662389,-500.0,0.00041095,30]
[402035077,1768488662398,-500.0,0.00041095,30]
[402035078,1768488662408,-500.0,0.00041095,30]
[402035079,1768488662417,-500.0,0.00041095,30]
[402035080,1768488662427,-151.0,0.00041095,120]
[402035081,1768488662437,-500.0,0.00041095,30]
[402035082,1768488662447,-500.0,0.00041095,30]
[402035083,1768488662456,-151.0,0.00041095,120]
[402035084,1768488662466,-500.0,0.00041095,30]
[402035085,1768488662476,-2607.35,0.00041095,30]
[402035086,1768488662485,-151.0,0.00041095,120]
[402035087,1768488662494,-151.0,0.00041095,120]
[402035088,1768488662504,-500.0,0.00041095,30]
[402035089,1768488662513,-151.0,0.00041095,120]
[402035090,1768488662524,-151.0,0.00041095,120]
[402035091,1768488662533,-500.0,0.00041095,30]
[402035092,1768488662543,-178.816472,0.00041095,120]
[402035093,1768488662553,-500.0,0.00041095,30]
[402035094,1768488662563,-341.49228973,0.00041095,30]
[402035095,1768488662572,-541.62296015,0.00041095,30]
[402035096,1768488662582,-950.04,0.00041095,30]
[402035097,1768488662594,-169.195836,0.00041095,120]
[402035098,1768488662604,-1316.61,0.00041095,30]
[402035099,1768488662615,-500.0,0.00041095,30]
[402035100,1768488662625,-500.0,0.00041095,30]
[402035101,1768488662644,-500.0,0.00041095,30]
[402035102,1768488662655,-655.72,0.00041095,30]
[402035103,1768488662666,-549.40028108,0.00041095,30]
[402035104,1768488662676,-500.0,0.00041095,30]
[402035105,1768488662686,-1714.17,0.00041095,30]
[402035106,1768488662696,-500.0,0.00041095,30]
[402035107,1768488662705,-606.42,0.00041095,30]
[402035108,1768488662714,-500.0,0.00041095,14]
[402035109,1768488662724,-500.0,0.00041095,30]
[402035110,1768488662733,-500.0,0.00041095,30]
[402035111,1768488662743,-1132.55,0.00041095,30]
[402035112,1768488662752,-151.0,0.00041095,120]
[402035113,1768488662762,-500.0,0.00041095,30]
[402035114,1768488662772,-151.0,0.00041095,120]
[402035115,1768488662783,-500.0,0.00041095,30]
[402035116,1768488662792,-500.0,0.00041095,30]
[402035117,1768488662802,-500.0,0.00041095,30]
[402035118,1768488662812,-500.0,0.00041095,30]
[402035119,1768488662821,-500.0,0.00041095,30]
[402035120,1768488662831,-907.56,0.00041095,30]
[402035121,1768488662846,-668.51,0.00041095,30]
[402035122,1768488662856,-669.77,0.00041095,30]
[402035123,1768488662865,-542.41074394,0.00041095,30]
[402035124,1768488662875,-151.0,0.00041095,120]
[402035125,1768488662885,-500.0,0.00041095,30]
[402035126,1768488662895,-500.0,0.00041095,30]
[402035127,1768488662904,-586.3186758,0.00041095,30]
[402035128,1768488662913,-151.0,0.00041095,120]
[402035129,1768488662924,-500.0,0.00041095,30]
[402035130,1768488662933,-151.0,0.00041095,120]
[402035131,1768488662943,-377.25950561,0.00041095,30]
[402035132,1768488662953,-500.0,0.00041095,30]
[402035133,1768488662963,-500.0,0.00041095,2]
[402035134,1768488662973,-2096.82,0.00041095,30]
[402035135,1768488662983,-826.83,0.00041095,30]
[402035136,1768488662993,-1170.41,0.00041095,30]
[402035137,1768488663002,-522.17353972,0.00041095,30]
[402035138,1768488663017,-376.670428,0.00041095,120]
[402035139,1768488663027,-500.0,0.00041095,30]
[402035140,1768488663037,-376.670428,0.00041095,120]
[402035141,1768488663047,-376.670428,0.00041095,120]
[402035142,1768488663057,-652.01,0.00041095,30]
[402035143,1768488663069,-2304.87,0.00041095,30]
[402035144,1768488663094,-376.670428,0.00041095,120]
[402035145,1768488663104,-687.81,0.00041095,30]
[402035146,1768488663114,-500.0,0.00041095,30]
[402035147,1768488663124,-500.0,0.00041095,30]
[402035148,1768488663135,-376.670428,0.00041095,120]
[402035149,1768488663145,-376.670428,0.00041095,120]
[402035150,1768488663155,-376.670428,0.00041095,120]
[402035151,1768488663164,-376.670428,0.00041095,120]
[402035152,1768488663174,-376.670428,0.00041095,120]
[402035153,1768488663186,-1037.53,0.00041095,30]
[402035154,1768488663195,-500.0,0.00041095,30]
[402035155,1768488663205,-376.670428,0.00041095,120]
[402035156,1768488663215,-376.670428,0.00041095,120]
[402035157,1768488663224,-376.670428,0.00041095,120]
[402035158,1768488663234,-500.0,0.00041095,30]
[402035159,1768488663244,-500.0,0.00041095,30]
[402035160,1768488663254,-500.0,0.00041095,30]
[402035161,1768488663263,-500.0,0.00041095,30]
[402035162,1768488663273,-789.77,0.00041095,30]
[402035163,1768488663283,-2789.42,0.00041095,30]
[402035164,1768488663292,-500.0,0.00041095,30]
[402035165,1768488663303,-826.69,0.00041095,30]
[402035166,1768488663312,-1149.65,0.00041095,30]
[402035167,1768488663322,-500.0,0.00041095,30]
[402035168,1768488663332,-500.0,0.00041095,30]
[402035169,1768488663344,-500.0,0.00041095,30]
[402035170,1768488663354,-500.0,0.00041095,30]
[402035171,1768488663363,-1368.893506,0.00041095,120]
[402035172,1768488663373,-1368.893506,0.00041095,120]
[402035173,1768488663383,-1368.893506,0.00041095,120]
[402035174,1768488663397,-694.97,0.00041095,30]
[402035175,1768488663407,-1368.893506,0.00041095,120]
[402035176,1768488663417,-500.0,0.00041095,30]
[402035177,1768488663427,-500.0,0.00041095,30]
[402035178,1768488663437,-1368.893506,0.00041095,120]
[402035179,1768488663447,-5560.17,0.00041095,30]
[402035180,1768488663456,-1368.893506,0.00041095,120]
[402035181,1768488663467,-1451.55,0.00041095,30]
[402035182,1768488663477,-1368.893506,0.00041095,120]
[402035183,1768488663487,-866.58,0.00041095,30]
[402035184,1768488663496,-1368.893506,0.00041095,120]
[402035185,1768488663506,-1368.893506,0.00041095,120]
[402035186,1768488663516,-1368.893506,0.00041095,120]
[402035187,1768488663526,-1368.893506,0.00041095,120]
[402035188,1768488663536,-500.0,0.00041095,30]
[402035189,1768488663546,-1368.893506,0.00041095,120]
[402035190,1768488663556,-500.0,0.00041095,30]
[402035191,1768488663566,-500.0,0.00041095,30]
[402035192,1768488663576,-502.74,0.00041095,30]
[402035193,1768488663588,-500.0,0.00041095,30]
[402035194,1768488663599,-203.28937914,0.00041095,30]
[402035195,1768488663610,-1120.83,0.00041095,30]
[402035196,1768488663624,-1802.52,0.00041095,30]
[402035197,1768488663635,-500.0,0.00041095,30]
[402035198,1768488663644,-500.0,0.00041095,30]
[402035199,1768488663654,-531.08,0.00041095,30]
[402035200,1768488663664,-1400.61,0.00041095,30]
[402035201,1768488663673,-1000.0,0.00041095,30]
[402035202,1768488663683,-500.0,0.00041095,30]
[402035203,1768488663693,-2718.45,0.00041095,30]
[402035204,1768488663703,-500.0,0.00041095,30]
[402035205,1768488663712,-500.0,0.00041095,30]
[402035206,1768488663722,-741.487047,0.00041095,120]
[402035207,1768488663732,-741.487047,0.00041095,120]
[402035208,1768488663742,-741.487047,0.00041095,120]
[402035209,1768488663751,-500.0,0.00041095,30]
[402035210,1768488663761,-741.487047,0.00041095,120]
[402035211,1768488663775,-741.487047,0.00041095,120]
[402035212,1768488663784,-741.487047,0.00041095,120]
[402035213,1768488663795,-1795.34,0.00041095,30]
[402035214,1768488663805,-500.0,0.00041095,30]
[402035215,1768488663815,-500.0,0.00041095,30]
[402035216,1768488663825,-1450.87,0.00041095,30]
[402035217,1768488663834,-500.0,0.00041095,30]
[402035218,1768488663845,-741.487047,0.00041095,120]
[402035219,1768488663854,-835.38,0.00041095,30]
[402035220,1768488663864,-741.487047,0.00041095,120]
[402035221,1768488663873,-1344.06,0.00041095,30]
[402035222,1768488663883,-741.487047,0.00041095,120]
[402035223,1768488663892,-500.0,0.00041095,30]